bitfinex-derivatives/quotes_SOLF0:USTF0_20220110
["timestamp","ask_amount","ask_price","bid_price","bid_amount"]
[1641774222106,27.66479,142.41,142.34,3.98786676]
[1641774223107,27.66479,142.41,142.36,27.66479]
[1641774226713,31.66479,142.41,142.36,27.66479]
[1641774227516,27.66479,142.41,142.33,27.66479]
[1641774227915,31.66479,142.41,142.33,27.66479]
[1641774228114,9.6180904,142.4,142.33,27.66479]
[1641774228316,4.0,142.39,142.33,27.66479]
[1641774228516,7.3740904,142.4,142.33,27.66479]
[1641774229018,8.17165028,142.4,142.33,27.66479]
[1641774229719,12.17165028,142.4,142.33,27.66479]
[1641774230722,4.0,142.39,142.33,27.66479]
[1641774231222,4.0,142.39,142.34,3.9880198]
[1641774231629,27.66479,142.38,142.34,3.9880198]
[1641774234126,27.66479,142.38,142.33,27.66479]
[1641774235328,4.79764435,142.37,142.33,27.66479]
[1641774236332,4.0,142.36,142.33,27.66479]
[1641774236534,4.0,142.35,142.3,27.66479]
[1641774236734,4.0,142.36,142.3,27.66479]
[1641774237738,4.0,142.35,142.3,27.66479]
[1641774240036,4.0,142.35,142.31,3.98877379]
[1641774240340,4.0,142.34,142.31,3.98877379]
[1641774240637,4.0,142.35,142.31,3.98877379]
[1641774240838,4.0,142.34,142.31,3.98877379]
[1641774241338,4.79777087,142.34,142.31,3.98877379]
[1641774241639,0.79777087,142.34,142.31,3.98877379]
[1641774243141,0.79777087,142.34,142.27,60.6139]
[1641774243743,0.79777087,142.34,142.28,27.66479]
[1641774243942,42.57380819,142.37,142.28,27.66479]
[1641774244143,42.57380819,142.37,142.28,30.14596304]
[1641774244343,0.79777313,142.33,142.28,30.14596304]
[1641774244643,0.79777313,142.33,142.28,35.7685313]
[1641774245043,0.79777313,142.33,142.32,3.98882274]
[1641774246945,27.66479,142.37,142.32,3.98882274]
[1641774247348,27.66479,142.37,142.32,6.47013689]
[1641774247949,27.66479,142.37,142.32,6.4696854]
[1641774248147,2.48868196,142.36,142.32,3.98837125]
[1641774248347,2.48868196,142.36,142.33,58.3726]
[1641774248546,2.48868196,142.36,142.32,3.98837125]
[1641774248947,2.48868196,142.4,142.33,2.48098832]
[1641774249148,2.48868196,142.4,142.33,61.01378832]
[1641774249750,17.39770015,142.41,142.33,58.5328]
[1641774250049,17.39770015,142.41,142.34,27.66479]
[1641774251350,14.90901819,142.4,142.34,27.66479]
[1641774252952,17.39770015,142.41,142.34,27.66479]
[1641774253759,17.39770015,142.41,142.35,2.480215]
[1641774253954,2.48868196,142.41,142.37,27.66479]
[1641774255759,14.90901819,142.42,142.37,27.66479]
[1641774255959,14.90901819,142.45,142.41,27.66479]
[1641774257360,14.90901819,142.47,142.41,27.66479]
[1641774258663,14.90901819,142.49,142.41,27.66479]
[1641774258861,14.90901819,142.49,142.42,62.2997]
[1641774259762,80.54481819,142.5,142.42,62.2997]
[1641774260161,80.54481819,142.5,142.44,27.66479]
[1641774260363,18.90901819,142.5,142.44,27.66479]
[1641774260562,4.0,142.5,142.44,27.66479]
[1641774261465,33.71266171,142.51,142.44,27.66479]
[1641774261765,4.0,142.47,142.42,3.98561131]
[1641774262566,4.0,142.48,142.42,3.98561131]
[1641774262766,4.0,142.47,142.42,3.98561131]
[1641774263268,25.23941951,142.49,142.42,3.98561131]
[1641774263768,25.23941951,142.49,142.41,60.888]
[1641774263969,0.79710655,142.49,142.42,4.0]
[1641774264169,0.79710655,142.49,142.47,27.66479]
[1641774266269,9.61328457,142.52,142.47,27.66479]
[1641774266871,5.61328457,142.52,142.47,27.66479]
[1641774267071,4.0,142.53,142.47,27.66479]
[1641774267672,18.82752087,142.54,142.47,27.66479]
[1641774267871,4.0,142.53,142.47,27.66479]
[1641774268071,18.82752087,142.54,142.47,27.66479]
[1641774268973,4.0,142.54,142.47,27.66479]
[1641774269374,62.8088,142.55,142.47,27.66479]
[1641774269673,4.0,142.53,142.47,27.66479]
[1641774271475,4.0,142.53,142.48,3.9843744]
[1641774272877,4.0,142.54,142.48,3.9843744]
[1641774273176,66.8088,142.55,142.48,3.9843744]
[1641774273377,4.0,142.54,142.48,3.9843744]
[1641774273677,4.0,142.53,142.48,3.9843744]
[1641774274476,4.0,142.53,142.47,27.66479]
[1641774274676,4.0,142.54,142.47,27.66479]
[1641774275576,66.8088,142.55,142.47,27.66479]
[1641774277478,4.0,142.54,142.47,27.66479]
[1641774277879,4.0,142.53,142.47,27.66479]
[1641774278078,4.0,142.52,142.47,27.66479]
[1641774278479,4.0,142.53,142.47,27.66479]
[1641774278679,4.0,142.53,142.48,3.9842933]
[1641774279082,4.0,142.52,142.48,3.9842933]
[1641774279281,4.0,142.53,142.48,3.9842933]
[1641774281088,0.79688908,142.52,142.48,3.9842933]
[1641774281590,0.79688908,142.52,142.47,27.66479]
[1641774282789,4.79688908,142.52,142.47,27.66479]
[1641774282989,0.79688908,142.52,142.47,27.66479]
[1641774283190,4.79688908,142.52,142.47,27.66479]
[1641774283590,0.79688908,142.52,142.47,27.66479]
[1641774283991,4.0,142.53,142.47,27.66479]
[1641774284293,0.79687255,142.52,142.47,27.66479]
[1641774285191,4.79687255,142.52,142.47,27.66479]
[1641774285592,0.79687255,142.52,142.47,27.66479]
[1641774286796,18.82752087,142.53,142.47,27.66479]
[1641774287194,0.79688593,142.51,142.47,27.66479]
[1641774289399,0.79688593,142.51,142.5,27.66479]
[1641774290100,18.82752087,142.55,142.47,27.66479]
[1641774290702,0.79692056,142.5,142.47,27.66479]
[1641774292103,0.79692056,142.5,142.48,3.98416251]
[1641774293905,14.82752087,142.53,142.48,3.98416251]
[1641774294106,14.82752087,142.52,142.48,3.98416251]
[1641774295207,14.82752087,142.52,142.47,27.66479]
[1641774296206,18.82752087,142.52,142.47,27.66479]
[1641774296504,24.44085576,142.52,142.46,62.9749]
[1641774296707,22.19485576,142.52,142.46,62.9749]
[1641774296905,26.19485576,142.52,142.46,62.9749]
[1641774297105,22.19485576,142.52,142.46,62.9749]
[1641774297305,14.82752087,142.5,142.45,27.66479]
[1641774298207,17.31889968,142.5,142.45,27.66479]
[1641774298807,17.31889968,142.5,142.48,3.98421195]
[1641774300711,4.79691679,142.49,142.48,1.195e-05]
[1641774300912,1.754,142.48,142.41,14.82752087]
[1641774301112,4.0,142.42,142.41,14.82752087]
[1641774301312,27.66479,142.45,142.38,39.54005566]
[1641774301512,1.754,142.46,142.38,39.54005566]
[1641774301712,35.03434811,142.47,142.38,39.54005566]
[1641774301911,33.28034811,142.47,142.38,39.54005566]
[1641774302112,33.28034811,142.47,142.38,12.42751707]
[1641774302113,2.49137881,142.44,142.38,12.42751707]
[1641774303112,17.31889968,142.46,142.38,2.4845483]
[1641774303914,2.49137881,142.46,142.38,12.41837733]
[1641774304116,6.49137881,142.46,142.38,12.41837733]
[1641774304715,2.49137881,142.46,142.38,2.4845483]
[1641774305114,3.70979066,142.46,142.39,3.98586099]
[1641774306419,1.21841185,142.46,142.4,2.4845483]
[1641774306916,4.0,142.44,142.4,2.4845483]
[1641774307118,4.0,142.43,142.4,2.4845483]
[1641774307518,1.754,142.44,142.4,2.4845483]
[1641774307719,1.754,142.45,142.39,3.98586099]
[1641774308020,16.04593272,142.46,142.39,3.98586099]
[1641774308218,14.82752087,142.46,142.38,5.754]
[1641774308618,0.79709491,142.45,142.4,6.46381216]
[1641774309420,0.79709491,142.45,142.41,27.66479]
[1641774311124,14.82752087,142.49,142.41,51.66479]
[1641774311324,14.82752087,142.49,142.42,1.754]
[1641774311524,14.82752087,142.49,142.46,27.66479]
[1641774312427,17.31148956,142.53,142.46,27.66479]
[1641774313830,2.48396869,142.53,142.46,27.66479]
[1641774314627,17.31148956,142.53,142.46,27.66479]
[1641774314926,4.0,142.5,142.46,27.66479]
[1641774315127,4.0,142.51,142.47,3.98413682]
[1641774315326,18.82752087,142.51,142.47,3.98413682]
[1641774315527,14.82752087,142.51,142.47,3.98413682]
[1641774316430,4.0,142.5,142.47,3.98413682]
[1641774316628,4.0,142.49,142.47,3.98413682]
[1641774317627,4.0,142.48,142.47,3.98413682]
[1641774318027,4.0,142.48,142.42,63.7678]
[1641774318028,6.48396869,142.48,142.42,63.7678]
[1641774318230,6.48396869,142.48,142.41,27.66479]
[1641774318431,2.48396869,142.48,142.41,27.66479]
[1641774318628,6.48396869,142.48,142.41,27.66479]
[1641774319029,4.0,142.48,142.41,27.66479]
[1641774319831,6.4842871,142.47,142.39,61.2191]
[1641774320131,4.0,142.46,142.39,61.2191]
[1641774320331,4.0,142.45,142.39,61.2191]
[1641774320533,4.0,142.44,142.37,14.88380014]
[1641774320734,4.0,142.44,142.35,79.58700014]
[1641774320931,4.0,142.43,142.35,79.58700014]
[1641774321132,12.77745835,142.44,142.43,3.98538641]
[1641774321433,12.77745835,142.44,142.35,79.58700014]
[1641774321635,11.02345835,142.44,142.35,79.58700014]
[1641774321833,2.4842871,142.42,142.35,64.7032]
[1641774322634,27.66479,142.43,142.35,64.7032]
[1641774322835,27.66479,142.43,142.36,2.47790216]
[1641774324335,2.48533874,142.42,142.35,64.7032]
[1641774326037,2.48533874,142.42,142.36,3.98642495]
[1641774327745,1.77413686,142.41,142.36,3.98642495]
[1641774328947,4.0,142.4,142.36,3.98642495]
[1641774329147,4.0,142.4,142.33,14.88380014]
[1641774329349,9.61836977,142.4,142.36,3.98683999]
[1641774329546,4.0,142.39,142.36,3.98683999]
[1641774329748,4.0,142.38,142.36,3.98683999]
[1641774329947,5.61880598,142.38,142.36,3.98683999]
[1641774330448,5.61917414,142.37,142.36,3.98683999]
[1641774332450,5.61917414,142.37,142.31,27.66479]
[1641774332451,5.61880598,142.38,142.31,27.66479]
[1641774332650,2.17138135,142.4,142.37,3.98705951]
[1641774333654,7.78966049,142.4,142.37,3.98705951]
[1641774334252,5.61827914,142.4,142.37,3.98705951]
[1641774335954,5.61827914,142.4,142.34,27.66479]
[1641774337055,9.61827914,142.4,142.34,27.66479]
[1641774337957,4.0,142.39,142.34,27.66479]
[1641774338258,9.61827914,142.4,142.34,27.66479]
[1641774338459,4.0,142.39,142.34,27.66479]
[1641774338857,9.61827914,142.4,142.34,27.66479]
[1641774339458,4.0,142.39,142.34,27.66479]
[1641774339658,9.61827914,142.4,142.34,27.66479]
[1641774339859,4.0,142.39,142.35,3.98697763]
[1641774340259,9.6188745,142.38,142.35,3.98697763]
[1641774340461,5.6188745,142.38,142.35,3.98697763]
[1641774341263,9.6188745,142.38,142.35,3.98697763]
[1641774341560,9.6188745,142.38,142.33,63.9564]
[1641774341561,9.6196086,142.36,142.31,88.07239]
[1641774341762,4.0,142.35,142.31,88.07239]
[1641774342262,5.6196086,142.36,142.31,27.66479]
[1641774342861,4.0,142.35,142.31,27.66479]
[1641774343463,4.0,142.33,142.31,27.66479]
[1641774343663,4.0,142.33,142.28,63.4083]
[1641774343863,9.62148396,142.32,142.25,14.88380014]
[1641774344061,5.62148396,142.32,142.25,14.88380014]
[1641774344262,9.62148396,142.32,142.25,14.88380014]
[1641774344462,27.66479,142.31,142.25,14.88380014]
[1641774344662,5.62215911,142.3,142.25,14.88380014]
[1641774345362,5.62215911,142.3,142.24,89.34549]
[1641774345363,5.62215911,142.3,142.24,116.60637473]
[1641774346266,5.62215911,142.3,142.25,2.47446634]
[1641774347065,10.7444933,142.34,142.25,2.47446634]
[1641774347465,6.7444933,142.34,142.25,6.47446634]
[1641774347665,6.7444933,142.34,142.25,2.47446634]
[1641774347865,6.7444933,142.34,142.25,6.47446634]
[1641774348164,6.7444933,142.34,142.26,2.47446634]
[1641774348165,10.7444933,142.34,142.26,2.47446634]
[1641774348464,10.7444933,142.34,142.29,27.66479]
[1641774348665,10.7444933,142.34,142.26,2.47446634]
[1641774348867,6.7444933,142.34,142.26,2.47446634]
[1641774349066,1.756,142.36,142.25,6.47446634]
[1641774349265,77.20757887,142.37,142.25,6.47446634]
[1641774349466,2.96733925,142.29,142.25,2.47446634]
[1641774350069,2.96733925,142.29,142.26,17.35826648]
[1641774350371,65.11597498,142.37,142.26,17.35826648]
[1641774350569,65.11597498,142.37,142.29,27.66479]
[1641774351169,69.11597498,142.37,142.29,27.66479]
[1641774351570,5.61994394,142.36,142.29,27.66479]
[1641774351769,7.37594394,142.36,142.29,27.66479]
[1641774352475,11.14011238,142.36,142.29,27.66479]
[1641774352873,9.38411238,142.36,142.29,27.66479]
[1641774353472,9.38411238,142.36,142.3,2.47555959]
[1641774354773,9.38411238,142.36,142.32,27.66479]
[1641774354974,9.38411238,142.36,142.3,2.47555959]
[1641774355174,5.61994394,142.36,142.3,2.47555959]
[1641774355374,2.87302796,142.35,142.3,2.47555959]
[1641774356074,2.87302796,142.35,142.29,27.66479]
[1641774357676,2.87302796,142.35,142.31,3.98771239]
[1641774358177,5.61994394,142.36,142.31,3.98771239]
[1641774358377,2.87318841,142.35,142.31,3.98771239]
[1641774360579,2.87318841,142.35,142.29,27.66479]
[1641774360780,2.87318841,142.35,142.29,31.66479]
[1641774360980,2.87318841,142.35,142.32,31.65248755]
[1641774361381,5.61859271,142.39,142.32,31.65248755]
[1641774361581,2.8728329,142.34,142.32,31.65248755]
[1641774362584,2.8728329,142.34,142.33,2.47681366]
[1641774363382,3.29e-05,142.34,142.33,2.47681366]
[1641774364383,5.61859271,142.39,142.33,2.47681366]
[1641774365987,11.2370742,142.39,142.33,2.47681366]
[1641774366186,11.2370742,142.39,142.33,65.58641366]
[1641774367189,11.2370742,142.39,142.33,63.1096]
[1641774367394,2.58514685,142.38,142.33,67.09683701]
[1641774369196,2.58514685,142.38,142.34,2.47710449]
[1641774370200,15.2370742,142.39,142.34,2.47710449]
[1641774370699,2.58524664,142.37,142.34,6.46427162]
[1641774370900,12.20464759,142.37,142.34,6.46427162]
[1641774371198,5.62002771,142.35,142.34,6.46427162]
[1641774371798,5.62002771,142.35,142.34,3.98716713]
[1641774371998,8.20451913,142.37,142.34,3.98716713]
[1641774373804,5.61927249,142.37,142.33,27.66479]
[1641774374003,2.01116333,142.36,142.33,27.66479]
[1641774374202,2.01116333,142.36,142.34,3.98791237]
[1641774376708,6.74220384,142.39,142.34,3.98791237]
[1641774377009,6.74220384,142.39,142.33,27.66479]
[1641774377507,6.74220384,142.39,142.35,3.9870734]
[1641774378408,10.74220384,142.39,142.35,3.9870734]
[1641774378611,6.74220384,142.39,142.35,3.9870734]
[1641774379409,2.01063315,142.38,142.35,3.9870734]
[1641774380010,2.01063315,142.38,142.33,27.66479]
[1641774380413,2.01063315,142.38,142.36,3.98705117]
[1641774382217,10.74220384,142.39,142.36,3.98705117]
[1641774382417,2.01080507,142.37,142.36,3.98705117]
[1641774383215,2.01080507,142.37,142.33,27.66479]
[1641774384217,2.01080507,142.37,142.34,2.48337919]
[1641774384619,14.82752087,142.4,142.35,4.0]
[1641774384819,4.33402087,142.4,142.35,4.0]
[1641774385020,4.33402087,142.43,142.35,4.0]
[1641774385217,4.33402087,142.43,142.34,15.2581255]
[1641774385417,2.01110585,142.37,142.36,3.98734024]
[1641774385619,2.01110585,142.37,142.36,7.98734024]
[1641774385820,5.85e-06,142.37,142.36,7.98734024]
[1641774386020,47.63485798,142.46,142.36,35.65213024]
[1641774386219,2.48551286,142.45,142.37,62.6559]
[1641774387021,2.48551286,142.45,142.38,2.48337919]
[1641774387920,2.48551286,142.46,142.38,2.48337919]
[1641774388121,2.48551286,142.46,142.41,27.66479]
[1641774388725,1.40726974,142.42,142.41,27.66479]
[1641774388924,1.40726974,142.42,142.37,62.6559]
[1641774389524,1.40726974,142.42,142.38,2.47839617]
[1641774390324,1.40726974,142.42,142.37,62.6559]
[1641774391529,1.754,142.43,142.37,62.6559]
[1641774391730,37.28131454,142.44,142.37,62.6559]
[1641774391929,4.0,142.43,142.37,62.6559]
[1641774392130,4.0,142.43,142.38,3.98630684]
[1641774392930,4.0,142.42,142.38,3.98630684]
[1641774393533,4.0,142.39,142.3,41.29405566]
[1641774393732,7.02592567,142.39,142.3,99.01085566]
[1641774393934,5.61921944,142.37,142.3,99.01085566]
[1641774394134,5.61921944,142.37,142.3,126.67564566]
[1641774394335,5.61921944,142.37,142.31,2.48047146]
[1641774395536,4.0,142.35,142.31,2.48047146]
[1641774395735,4.0,142.34,142.31,2.48047146]
[1641774396136,31.66479,142.34,142.31,2.48047146]
[1641774396338,31.66479,142.34,142.28,27.66479]
[1641774396536,27.66479,142.34,142.28,27.66479]
[1641774396736,5.61994586,142.36,142.28,27.66479]
[1641774396935,4.0,142.34,142.28,27.66479]
[1641774398340,4.0,142.33,142.28,27.66479]
[1641774398738,11.37660578,142.34,142.28,27.66479]
[1641774398938,7.37660578,142.34,142.28,27.66479]
[1641774400040,11.37660578,142.34,142.28,27.66479]
[1641774400244,7.37660578,142.34,142.28,27.66479]
[1641774400442,11.37660578,142.34,142.28,27.66479]
[1641774401042,9.62117198,142.32,142.28,27.66479]
[1641774401247,5.62117198,142.32,142.28,27.66479]
[1641774401545,9.62117198,142.32,142.28,27.66479]
[1641774402045,10.82566705,142.32,142.28,27.66479]
[1641774402246,4.0,142.31,142.28,27.66479]
[1641774402546,4.0,142.31,142.24,61.8328]
[1641774402747,10.82566705,142.32,142.24,61.8328]
[1641774402945,4.0,142.31,142.24,61.8328]
[1641774403147,5.62212655,142.3,142.24,61.8328]
[1641774403346,5.62212655,142.3,142.23,27.66479]
[1641774403547,5.6233409,142.27,142.25,2.47079957]
[1641774403746,4.0,142.3,142.25,2.47079957]
[1641774404147,4.0,142.28,142.25,2.47079957]
[1641774404347,4.0,142.28,142.23,55.32958]
[1641774404548,9.62259732,142.29,142.23,55.32958]
[1641774405849,5.62334668,142.27,142.23,55.32958]
[1641774406751,5.62377623,142.26,142.23,55.32958]
[1641774406951,9.62377623,142.26,142.23,55.32958]
[1641774408755,5.62377623,142.26,142.23,55.32958]
[1641774409556,5.62377623,142.26,142.2,60.8989]
[1641774410359,5.62377623,142.26,142.25,27.66479]
[1641774414061,5.62377623,142.26,142.25,31.65490578]
[1641774415364,5.62247934,142.29,142.25,31.65490578]
[1641774417361,5.62247934,142.29,142.25,27.66479]
[1641774417762,5.62247934,142.29,142.25,31.65500658]
[1641774417964,4.0,142.27,142.25,31.65500658]
[1641774418363,4.0,142.26,142.25,31.65500658]
[1641774418563,9.62348804,142.27,142.25,31.65500658]
[1641774418763,4.0,142.26,142.25,31.65500658]
[1641774420364,4.0,142.26,142.25,27.66479]
[1641774420568,5.62348804,142.27,142.25,27.66479]
[1641774420764,4.0,142.26,142.25,27.66479]
[1641774422266,4.0,142.26,142.2,60.8989]
[1641774422867,6.7473889,142.28,142.25,22.04078774]
[1641774423169,4.0,142.26,142.25,22.04078774]
[1641774423368,4.0,142.26,142.23,27.66479]
[1641774423567,4.0,142.24,142.17,63.0241]
[1641774424367,4.0,142.22,142.18,2.47845828]
[1641774424968,4.0,142.21,142.19,27.66479]
[1641774426268,4.0,142.22,142.19,27.66479]
[1641774427069,10.50828132,142.25,142.19,27.66479]
[1641774427269,8.75028132,142.25,142.19,27.66479]
[1641774428269,12.75028132,142.25,142.19,27.66479]
[1641774428469,5.62436935,142.24,142.19,27.66479]
[1641774429372,5.62436935,142.24,142.2,2.47713752]
[1641774429771,2.00116271,142.21,142.2,2.47713752]
[1641774429970,6.271e-05,142.21,142.2,2.47713752]
[1641774430970,5.62568845,142.21,142.2,2.47713752]
[1641774431571,5.62568845,142.21,142.19,27.66479]
[1641774432973,5.62562574,142.21,142.19,27.66479]
[1641774433374,11.25131417,142.21,142.19,27.66479]
[1641774433773,12.37373868,142.24,142.17,27.66479]
[1641774433975,5.62648775,142.19,142.17,27.66479]
[1641774434576,8.55168607,142.21,142.17,27.66479]
[1641774434775,14.17731055,142.21,142.17,27.66479]
[1641774435778,14.17731055,142.21,142.18,2.48088224]
[1641774436279,14.17731055,142.21,142.2,3.99141575]
[1641774436980,12.37626517,142.21,142.2,3.99141575]
[1641774438483,5.62448149,142.24,142.2,3.99141575]
[1641774439081,5.62448149,142.24,142.17,27.66479]
[1641774439281,5.62448149,142.24,142.17,31.66479]
[1641774439482,5.62448149,142.24,142.17,42.47032547]
[1641774439684,5.62448149,142.24,142.2,3.99145799]
[1641774442686,5.62448149,142.24,142.17,27.66479]
[1641774443287,5.62448149,142.24,142.21,3.99108444]
[1641774446295,5.62448149,142.24,142.17,42.47032547]
[1641774446493,5.62448149,142.24,142.18,3.9910947]
[1641774446993,33.28927149,142.24,142.18,3.9910947]
[1641774447393,33.28927149,142.24,142.19,2.48573912]
[1641774447995,5.62473395,142.23,142.19,2.48573912]
[1641774449797,5.62473395,142.23,142.19,6.47702814]
[1641774450503,5.62473395,142.23,142.2,2.48573912]
[1641774450703,5.62566842,142.21,142.2,2.48573912]
[1641774451003,5.62566842,142.21,142.19,3.99128902]
[1641774452804,5.62566842,142.21,142.16,101.83962547]
[1641774453004,5.62566842,142.21,142.2,6.47752633]
[1641774454808,1.40019387,142.22,142.2,6.47752633]
[1641774455311,36.16901965,142.26,142.2,6.47752633]
[1641774455508,27.66479,142.26,142.2,10.47752633]
[1641774455710,27.66479,142.26,142.2,6.47752633]
[1641774455917,27.66479,142.28,142.2,10.47752633]
[1641774456208,27.66479,142.28,142.21,21.29194741]
[1641774456712,27.66479,142.28,142.22,4.0]
[1641774457109,27.66479,142.28,142.23,27.66479]
[1641774457310,27.66479,142.28,142.23,42.47032547]
[1641774458010,27.66479,142.28,142.23,14.80553547]
[1641774458210,27.66479,142.28,142.22,2.48641194]
[1641774458211,27.66479,142.28,142.24,2.48641194]
[1641774458811,8.09652716,142.29,142.24,2.48641194]
[1641774459313,8.09652716,142.29,142.21,111.27333741]
[1641774459512,22.18288125,142.32,142.25,4.0]
[1641774459712,20.42688125,142.32,142.25,4.0]
[1641774459912,39.54809556,142.36,142.26,4.0]
[1641774460312,1.756,142.38,142.26,6.48641194]
[1641774460513,1.756,142.38,142.28,4.0]
[1641774461112,1.756,142.38,142.3,27.66479]
[1641774461314,2.48398178,142.37,142.3,27.66479]
[1641774462314,1.756,142.38,142.3,27.66479]
[1641774463620,27.66479,142.39,142.3,27.66479]
[1641774464220,0.79769058,142.37,142.3,27.66479]
[1641774465118,27.66479,142.35,142.29,3.98845291]
[1641774465520,5.6207893,142.33,142.29,3.98845291]
[1641774465719,1.756,142.32,142.29,3.98845291]
[1641774467023,5.756,142.32,142.29,3.98845291]
[1641774467221,27.66479,142.3,142.29,3.98845291]
[1641774467622,27.66479,142.3,142.24,64.7254]
[1641774467822,5.62256986,142.29,142.24,64.7254]
[1641774468022,1.756,142.28,142.24,64.7254]
[1641774468222,5.756,142.28,142.24,64.7254]
[1641774468424,5.623575,142.26,142.19,27.66479]
[1641774469324,27.66479,142.25,142.18,63.342]
[1641774470327,27.66479,142.25,142.19,2.47413664]
[1641774475131,0.79820101,142.24,142.19,2.47413664]
[1641774476333,0.79820101,142.24,142.2,4.0]
[1641774476732,0.79820101,142.24,142.19,2.47413664]
[1641774476933,0.79820101,142.24,142.21,2.47413664]
[1641774477740,0.79820101,142.24,142.19,2.47413664]
[1641774477935,0.7982012,142.24,142.19,2.47413664]
[1641774479137,6.42273599,142.24,142.19,2.47413664]
[1641774479437,5.62531279,142.22,142.19,2.47413664]
[1641774480038,5.62531279,142.22,142.16,27.66479]
[1641774482238,5.62531279,142.22,142.17,2.47631799]
[1641774482940,0.7981621,142.23,142.2,3.99172262]
[1641774484442,0.7981621,142.23,142.2,7.99172262]
[1641774484641,1.756,142.27,142.2,7.99172262]
[1641774484842,0.79831614,142.21,142.2,7.99172262]
[1641774485044,0.79831614,142.21,142.2,3.99172262]
[1641774485242,0.79831614,142.21,142.2,31.65651262]
[1641774485442,27.66479,142.28,142.2,31.65651262]
[1641774485641,27.66479,142.28,142.2,34.13144526]
[1641774486346,5.62344372,142.27,142.2,2.47493264]
[1641774486542,11.37944372,142.27,142.21,2.47493264]
[1641774486743,5.62424123,142.25,142.21,6.46595653]
[1641774486944,7.38024123,142.25,142.21,6.46595653]
[1641774487242,35.04503123,142.25,142.21,3.99102389]
[1641774488547,33.28903123,142.25,142.21,3.99102389]
[1641774489846,33.28903123,142.25,142.16,27.66479]
[1641774490146,33.28903123,142.25,142.22,3.99134595]
[1641774491248,27.66479,142.25,142.22,3.99134595]
[1641774491447,5.62353504,142.26,142.22,3.99134595]
[1641774492047,9.62353504,142.26,142.22,3.99134595]
[1641774492246,1.756,142.25,142.22,3.99134595]
[1641774493046,1.756,142.25,142.17,14.8677111]
[1641774493249,6.42260614,142.24,142.16,46.5325011]
[1641774493648,34.08739614,142.24,142.23,3.9912901]
[1641774494449,43.71207189,142.24,142.17,27.29338206]
[1641774494651,10.75022428,142.22,142.17,27.29338206]
[1641774494849,5.62624356,142.2,142.17,27.29338206]
[1641774495049,5.62624356,142.2,142.17,9.94106964]
[1641774495250,5.62624356,142.2,142.15,27.29338206]
[1641774495652,27.66479,142.18,142.15,27.29338206]
[1641774496151,27.66479,142.18,142.15,17.35231242]
[1641774496354,27.66479,142.18,142.15,2.48460132]
[1641774497052,27.66479,142.18,142.13,2.48460132]
[1641774498357,27.66479,142.18,142.12,27.29404945]
[1641774499061,27.66479,142.18,142.12,2.48460132]
[1641774499262,35.12679,142.18,142.12,2.48460132]
[1641774499861,1.64522236,142.17,142.12,2.48460132]
[1641774502365,10.05522236,142.17,142.12,2.48460132]
[1641774502866,8.41,142.17,142.12,2.48460132]
[1641774504369,14.03711366,142.17,142.12,6.48460132]
[1641774504571,9.62519662,142.22,142.12,2.48460132]
[1641774504770,31.66479,142.21,142.14,27.66479]
[1641774504969,5.62633987,142.19,142.12,30.14939132]
[1641774505169,8.50932257,142.2,142.13,14.8677111]
[1641774505170,5.62712933,142.17,142.13,14.8677111]
[1641774505369,13.61512933,142.17,142.13,14.8677111]
[1641774505669,10.75369865,142.15,142.13,9.23860238]
[1641774505870,5.758,142.14,142.12,40.07424997]
[1641774506068,8.86,142.14,142.12,27.66479]
[1641774506469,7.102,142.14,142.12,27.66479]
[1641774509977,7.102,142.14,142.08,62.7082]
[1641774510178,11.102,142.14,142.08,62.7082]
[1641774510378,5.758,142.13,142.03,39.54005566]
[1641774510579,5.758,142.13,142.09,2.47702076]
[1641774510780,27.66479,142.1,142.09,2.47702076]
[1641774511179,31.66479,142.1,142.09,2.47702076]
[1641774511584,31.66479,142.1,142.04,2.47702076]
[1641774511585,27.66479,142.1,142.04,2.47702076]
[1641774511781,31.66479,142.1,142.04,2.47702076]
[1641774511983,38.42081775,142.1,142.04,2.47702076]
[1641774512880,1.758,142.09,142.04,2.47702076]
[1641774514083,36.17881775,142.1,142.04,2.47702076]
[1641774514984,1.64605767,142.09,142.04,2.47702076]
[1641774516184,1.64605767,142.09,142.03,65.1556]
[1641774516887,1.64605767,142.09,142.04,2.47197578]
[1641774518185,34.42081775,142.1,142.04,2.47197578]
[1641774518484,34.42081775,142.1,142.03,65.1556]